Workbook

Sheet Лист1
A1: Детали находащиеся на молярном участке на 24.11.2014г.
A2: Изделие | C2: Номер детали | D2: Кол-во ШТ.
A3: Уступ | B3: Лдиг | C3: 741124335-01 | D3: 30
A4: Уступ 2 | B4: Лдиг | C4: 711114008-2 | D4: 50
A5: Уступ 2 | B5: Яиуш | C5: 735214036-01 | D5: 14
A6: Уступ | B6: Лдиг | C6: 301318005 | D6: 13
A7: Уступ | B7: Виур | C7: 735391001-02 | D7: 1000
A8: Уступ | B8: Увир | C8: 745512161-01 | D8: 740
A9: Уступ | B9: Виур | C9: 735391002-02 | D9: 1350
A10: Уступ | B10: Рж | C10: 8052874 | D10: 53
A11: Аппарат 1и | B11: Яиуш | C11: 746114001 | D11: 219
A12: Аппарат 1и | B12: Яиуш | C12: 741542032 | D12: 150
A13: Аппарат 1и | B13: Яиуш | C13: 741542033 | D13: 120
A14: Аппарат 1и | B14: Яиуш | C14: 741542034 | D14: 100
A15: Аппарат 1и | B15: Яиуш | C15: 741542035 | D15: 150
A16: Аппарат 1м | B16: Ря | C16: 8623969-01 | D16: 30
A17: Аппарат 1и | B17: Ря | C17: 8056892 | D17: 86
A18: Аппарат 1и | B18: Яиуш | C18: 745227001 | D18: 490
A19: Аппарат 1и | B19: Увир | C19: 735412137 | D19: 58
A20: Аппарат 2и | B20: Лдиг | C20: 741124785 | D20: 49
A21: Т 231-03 | B21: Увир | C21: 301172215 | D21: 68
A22: Т 231-03 | B22: Яиуш | C22: 301231009 | D22: 20
A23: Т 231-03 | B23: Яиуш | C23: 301231009 | D23: 20
A24: Т 231-03 | B24: Яиуш | C24: 301112016 | D24: 40
A25: Т 231-03 | B25: Лдиг | C25: 754463346 | D25: 8
A26: Т 231-03 | B26: Яиуш | C26: 301112015 | D26: 20
A27: Ва 119м | B27: Яиуш | C27: 745532053 | D27: 174
A28: Ва 119 | B28: Яиуш | C28: 301524011 | D28: 165
A29: Ва 119 | B29: Рж | C29: 8614028 | D29: 64
A30: Т 625 | B30: Риву | C30: 713321036-02 | D30: 10
A31: Т 625 | B31: Риву | C31: 741615109 | D31: 10
A32: Т 625 | B32: Риву | C32: 301412321 | D32: 9
A33: Т 625 | B33: Риву | C33: 745321114 | D33: 19 | E33: кат
A34: Т 625 | B34: Риву | C34: 671342233 | D34: 21 | E34: кат
A35: Т 625 | B35: Риву | C35: 671342028-01 | D35: 18 | E35: кат
A36: Т 625 | B36: Риву | C36: 301222201 | D36: 7
A37: Т 625 | B37: Риву | C37: 671342078 | D37: 55 | E37: кат
A38: П244 | B38: Яиуш | C38: 735412073 | D38: 28
A39: П 244 | B39: Яиуш | C39: 745322071 | D39: 8
A40: П 244 | B40: Яиуш | C40: 745422053 | D40: 50
A41: П 244 | B41: Яиуш | C41: 745322059 | D41: 44
A42: П 244 | B42: Яиуш | C42: 745322043 | D42: 5
A43: П 244 | B43: Яиуш | C43: 745352039 | D43: 45
A44: П 244 | B44: Яиуш | C44: 745352038 | D44: 30
A45: П 244 | B45: Увир | C45: 304121009 | D45: 6
A46: П 244 | B46: Увир | C46: 304121019 | D46: 18
A47: П 244 | B47: Увир | C47: 304121011 | D47: 6
A48: П 244 | B48: Яиуш | C48: 746122012 | D48: 24
A49: П 244 | B49: Яиуш | C49: 301233015 | D49: 6
A50: П 244 | B50: Яиуш | C50: 301233027 | D50: 6
A51: П 244 | B51: Яиуш | C51: 745532029 | D51: 6
A52: П 244 | B52: Яиуш | C52: 745384001 | D52: 21
A53: П 244 | B53: Яиуш | C53: 301561017-01 | D53: 6
A54: П 244 | B54: Яиуш | C54: 301561017 | D54: 6
A55: П 244 | B55: Яиуш | C55: 301561018-01 | D55: 5
A56: П 244 | B56: Яиуш | C56: 301561018 | D56: 4
A57: П 244 | B57: Увир | C57: 301244058 | D57: 6
A58: П 244 | B58: Яиуш | C58: 301233027 | D58: 6
A59: П 244 | B59: Яиуш | C59: 301233015 | D59: 6
A60: П 244 | B60: Яиуш | C60: 301233013 | D60: 6
A61: П 244 | B61: Яиуш | C61: 741134185 | D61: 48
A62: П 244 | B62: Яиуш | C62: 741134185-01 | D62: 33
A63: П 244 | B63: Яиуш | C63: 745422046 | D63: 31
A64: П 244 | B64: Яиуш | C64: 741134115 | D64: 25
A65: П 244 | B65: Увир | C65: 735312256 | D65: 85
A66: П 637 | B66: Лдиг | C66: 735214065 | D66: 25
A67: Т 208 | B67: Рж | C67: 6112168 | D67: 20
A68: Т 208 | B68: Рж | C68: 8020095 | D68: 100
A69: Т 208 | B69: Рж | C69: 8070349 | D69: 270
A70: П 636 | B70: Лдиг | C70: 735214064 | D70: 6
A71: П 636 | B71: Лдиг | C71: 743232002-1 | D71: 107
A72: П 636 | B72: Лдиг | C72: 743232002 | D72: 65
A73: П 636 | B73: Лдиг | C73: 741424072 | D73: 33
A74: П 636 | B74: Лдиг | C74: 741134222-2 | D74: 38
A75: П 636 | B75: Лдиг | C75: 741134222-3 | D75: 32
A76: П 636 | B76: Лдиг | C76: 305514005 | D76: 15
A77: П 636 | B77: Лдиг | C77: 741428024 | D77: 6
A78: П 636 | B78: Яиуш | C78: 735213010-18 | D78: 16
A79: П 636 | B79: Яиуш | C79: 735213010-31 | D79: 16
A80: П 636 | B80: Яиуш | C80: 735213010-23 | D80: 17
A81: П 636 | B81: Яиуш | C81: 735213010-16 | D81: 18
A82: П 636 | B82: Яиуш | C82: 735213010-21 | D82: 15
A83: П 636 | B83: Яиуш | C83: 735213010-24 | D83: 17
A84: П 636 | B84: Яиуш | C84: 735213010-20 | D84: 34
A85: П 636 | B85: Яиуш | C85: 735213010-29 | D85: 6
A86: П 636 | B86: Яиуш | C86: 735213010-26 | D86: 18
A87: П 636 | B87: Лдиг | C87: 301261046-01 | D87: 3
A88: П 636 | B88: Лдиг | C88: 301261046 | D88: 6
A89: П 636 | B89: Яиуш | C89: 735213010-19 | D89: 17
A90: Монолог | B90: Яиуш | C90: 725325002 | D90: 10
A91: Монолог | B91: Ксди | C91: 301232001 | D91: 18
A92: Уи 425 | B92: Яиуш | C92: 301412025 | D92: 2
A93: Фзс | B93: 2а | C93: 5752006 | D93: 80
A94: Фзс | B94: 2а | C94: 5752006 | D94: 70
A95: Фзс | B95: 2а | C95: 6112207 | D95: 60
A96: Угломер | B96: Рж | C96: 8813478-92 | D96: 126 | E96: лак
A97: Уа 158 | B97: Лдиг | C97: 731141002 | D97: 153
A98: Уа 158 | B98: Лдиг | C98: 735211003 | D98: 280
A99: 3 Баз | B99: Рж | C99: 8671024-02 | D99: 159
A100: 3 Баз | B100: Рж | C100: 8671024-2 | D100: 159
A101: 3 Баз | B101: Рж | C101: 4161245-9 | D101: 31
A102: 3 Баз | B102: Рж | C102: 7840366 | D102: 3000
A103: Са 232 | B103: Рж | C103: 8040127 | D103: 79
A104: Са 232 | B104: Рж | C104: 8040129 | D104: 10
A105: Са 232 | B105: Риву | C105: 735212046-01 | D105: 78
A106: Весна | B106: Рж | C106: 6112168 | D106: 20
A107: Весна | B107: Рж | C107: 6112175 | D107: 55
A108: Весна | B108: Рж | C108: 8020133 | D108: 77
A109: Ктс | B109: Яиуш | C109: 301172006 | D109: 47
A110: Ктс | B110: Яиуш | C110: 735414011 | D110: 18
A111: Уа 363 | B111: Яиуш | C111: 301172006 | D111: 31
A112: Ат 3104 | B112: Яиуш | C112: 735314041 | D112: 30
A113: Ат 3132 | B113: Рж | C113: 8075273 | D113: 2
A114: Ат 3132 | B114: Ря | C114: 8803796-01 | D114: 260
A115: Ау 3117 | B115: Яиуш | C115: 301172009 | D115: 2
A116: Ат 3104 | B116: Яиуш | C116: 741542066 | D116: 30
A117: Ат 3104 | B117: Яиуш | C117: 741542065 | D117: 30
A118: Б 9м2 | B118: Яиуш | C118: 745226013-01 | D118: 127
A119: Стенд | C119: 11-130-3 | D119: 10
A120: Стенд | C120: 986-44612-11 | D120: 1
A121: Стенд | C121: 12-1426-1 | D121: 1
A122: Стенд | C122: 986-145468-2 | D122: 1
A123: Стенд | C123: 6-306-1 | D123: 1
A124: Стенд | C124: 13-541-1 | D124: 10
A125: Стенд | C125: 976-145763 | D125: 8
A126: Стенд | C126: 986-44612-64 | D126: 3
A127: Стенд | C127: 986-44612-37 | D127: 1

Sheet декабрь
B1: наименование дсе | C1: ОСТАТОК | D1: ПРИХОД | G1: РАСХОД
D2: кол-во шт | E2: цех | F2: дата | G2: кол-во шт | H2: цех | I2: дата
B3: ря6.174.866 | C3: =D3-G3+G4+G5+G99 -> 45 | D3: 27 | E3: 16 | F3: 2014-12-12T13:25:52 | G3: 5 | I3: 2014-12-14T15:56:52
B4: ря6.174.866 | G4: 2 | I4: 2014-12-14T16:08:54 | J4: конопкой строка вставила строчку с наименованием, ввела расход в G4, а остаток в С | R4: 3 не пересчитался
B5: ря6.174.866 | G5: 1 | I5: 2014-12-14T17:54:06 | J5: конопкой строка вставила строчку с наименованием, ввела расход в G4, а остаток в С | R5: 3 не пересчитался
B6: рж6.112.168-01 | C6: =D6-G6+G7+G9 -> 24 | D6: 20 | E6: 16 | F6: 2014-12-14T16:07:46 | G6: 4 | I6: 2014-12-14T17:54:12
B7: рж6.112.168-01 | G7: 2 | I7: 2014-12-14T17:54:14
B8: 2а6.752.006 | C8: =D8-G8 -> 26 | D8: 26 | E8: 7 | F8: 2014-12-14T16:17:39
B9: рж6.112.168-01 | G9: 6 | I9: 2014-12-14T18:00:12
B10: яиуш.301231.009 | G10: 20 | H10: 7 | I10: 2014-12-01T14:35:44
B11: риву.671342.028-01 | G11: 18 | H11: 7 | I11: 2014-12-01T14:38:50
B12: риву.671342.058-01 | G12: 36 | H12: 7 | I12: 2014-12-01T14:40:15
B13: 122.3405010.200-02 | G13: 72 | H13: 12 | I13: 2014-12-01T14:42:03
B14: 121.3405010.200-03 | G14: 124 | H14: 12 | I14: 2014-12-12T15:07:34
B15: 986-44612-11 | G15: 1 | H15: 5 | I15: 2014-12-12T15:19:52
B16: яиуш.745384.001 | G16: 21 | H16: уч.97 | I16: 2014-12-12T15:24:36
B17: яиуш.745384.001 | I17: 2014-12-12T15:24:41
B18: яиуш.741128.144 | G18: 1 | H18: уч.97 | I18: 2014-12-12T15:21:13
B19: яиуш.741515.007-01 | G19: 6 | H19: 7 | I19: 2014-12-01T14:56:48
B20: яиуш.301233.006 | G20: 6 | H20: 5 | I20: 2014-12-12T15:24:57
B21: яиуш.741542.034 | G21: 54 | H21: 7 | I21: 2014-12-01T15:00:42
B22: яиуш.741542.032 | G22: 2 | H22: 7 | I22: 2014-12-01T15:07:21
B23: яиуш.741542.035 | G23: 5 | H23: 7 | I23: 2014-12-01T15:09:02
B24: яиуш.301112.002 | G24: 78 | H24: 4 | I24: 2014-12-01T15:10:05
B25: яиуш.301112.001 | G25: 80 | H25: 4 | I25: 2014-12-01T15:11:15
B26: 122.3405010.200-02 | G26: 60 | H26: 12 | I26: 2014-12-01T15:12:12
B27: 121.3405010.200-03 | G27: 70 | H27: 12 | I27: 2014-12-01T15:12:55
B28: лдиг743212.006 | C28: =D28-G28 -> 200 | D28: 200 | E28: гал | F28: 2014-12-01T15:29:24
B29: рж6.123.093 | C29: =D29-G29+G30 -> 20 | D29: 20 | E29: 16 | F29: 2014-12-01T15:34:59
B30: рж6.123.093
B31: 122.3405010.200-02 | G31: 72 | H31: 12 | I31: 2014-12-01T15:40:28
B32: лдиг.741428.021 | C32: =D32-G32+G36 -> 24 | D32: 12 | E32: 16 | F32: 2014-12-02T08:53:04
B33: яиуш.741134.262лак | C33: =D33-G33 -> 16 | D33: 16 | E33: 5 | F33: 2014-12-02T08:56:13
B34: яиуш.301112.016 | C34: =D34-G34 -> 21 | D34: 21 | E34: 16 | F34: 2014-12-02T08:58:59
B35: 2а5.752.006 | G35: 105 | H35: 7 | I35: 2014-12-02T09:05:48
B36: лдиг.741428.021 | G36: 12 | H36: 5 | I36: 2014-12-02T09:08:11
B37: яиуш.731192.010 | G37: 3 | H37: 5 | I37: 2014-12-02T09:11:32
B38: яиуш.735221.007 | C38: =D38-G38 -> 62 | D38: 62 | E38: гал | F38: 2014-12-02T12:32:03
B39: яиуш.301112.016 | C39: =D39-G39 -> 21 | D39: 21 | E39: 16 | F39: 2014-12-02T12:34:48
B40: яиуш.741234.058 | C40: =D40-G40 -> 83 | D40: 83 | E40: 5 | F40: 2014-12-02T12:36:28
B41: лдиг.741428.022 | C41: =D41-G41 -> 9 | D41: 9 | E41: 16 | F41: 2014-12-02T12:45:18
B42: яиуш.301231.024 | C42: =D42-G42+G207 -> 12 | D42: 6 | E42: 5 | F42: 2014-12-02T12:46:47
B43: яиуш.301233.019 | C43: =D43-G43+G98 -> 12 | D43: 6 | E43: 5 | F43: 2014-12-02T12:48:09
B44: яиуш.741542.033 | G44: 19 | H44: 7 | I44: 2014-12-02T12:50:22
B45: яиуш.301233.015 | G45: 6 | H45: 5 | I45: 2014-12-02T12:52:07
B46: яиуш.741542.065 | G46: 7 | H46: 7 | I46: 2014-12-02T12:53:28
B47: яиуш.741542.034 | G47: 17 | H47: 7 | I47: 2014-12-02T12:54:32
B48: увир.301224.058 | G48: 6 | H48: 5 | I48: 2014-12-02T12:55:52
B49: яиуш.301172.006 | G49: 1 | H49: 7 | I49: 2014-12-02T12:57:34
B50: рж8.810.261лак1раз | G50: 63 | H50: 16 | I50: 2014-12-02T13:00:32
B51: 122.3405010.200-02 | G51: 139 | I51: 2014-12-02T13:01:54
B52: яиуш.301532.009 | G52: 33 | I52: 2014-12-02T13:09:57
B53: яиуш.745535.023 | C53: =D53-G53 -> 9 | D53: 9 | E53: гал | F53: 2014-12-02T13:25:08
B54: ря8.075.325 | C54: =D54-G54 -> 57 | D54: 57 | E54: гал | F54: 2014-12-02T13:26:16
B55: риву.305153.007 | C55: =D55-G55 -> 105 | D55: 105 | E55: 16 | F55: 2014-12-02T14:29:46
B56: ря6.179.652 | C56: =D56-G56 -> 5 | D56: 5 | E56: 16 | F56: 2014-12-02T14:31:23
B57: рж6.123.141 | C57: =D57-G57 -> 15 | D57: 15 | E57: 16 | F57: 2014-12-02T14:32:33
B58: рж6.123.146 | C58: =D58-G58 -> 40 | D58: 40 | E58: 16 | F58: 2014-12-02T14:35:05
B59: яиуш.741542.065 | G59: 1 | H59: 7 | I59: 2014-12-02T14:36:53
B60: яиуш.735224.010-18 | G60: 16 | H60: 7 | I60: 2014-12-02T14:39:49
B61: яиуш.735224.010-21 | G61: 15 | H61: 7 | I61: 2014-12-02T14:41:03
B62: яиуш.735224.010-19 | G62: 17 | H62: 7 | I62: 2014-12-02T14:42:04
B63: яиуш.735224.010-29 | G63: 6 | H63: 7 | I63: 2014-12-02T14:43:15
B64: яиуш.735224.010-16 | G64: 18 | H64: 7 | I64: 2014-12-02T14:44:22
B65: яиуш.735224.010-23 | G65: 17 | H65: 7 | I65: 2014-12-02T14:47:06
B66: яиуш.735224.010-24 | G66: 17 | H66: 7 | I66: 2014-12-02T14:48:05
B67: яиуш.735224.010-31 | G67: 16 | H67: 7 | I67: 2014-12-02T14:48:59
B68: яиуш.735224.010-20 | G68: 34 | H68: 7 | I68: 2014-12-02T14:49:51
B69: яиуш.735224.010-26 | G69: 18 | H69: 7 | I69: 2014-12-02T14:50:45
B70: ря6.203.659 | C70: =D70-G70 -> 105 | D70: 105 | E70: 16 | F70: 2014-12-03T12:36:54
B71: рж8.050.848 | C71: =D71-G71+G128+G188 -> 66 | D71: 33 | E71: гал | F71: 2014-12-03T12:38:41
B72: яиуш.741682.008 | C72: =D72-G72 -> 42 | D72: 42 | E72: гал | F72: 2014-12-03T12:40:11
B73: яиуш.735535.024 | C73: =D73-G73+G136 -> 2 | D73: 1 | E73: 5 | F73: 2014-12-03T12:41:14
B74: шс4.750.425 | C74: =D74-G74 -> 7 | D74: 7 | E74: 7 | F74: 2014-12-03T12:42:06
B75: риву.671121.028 | C75: =D75-G75 -> 17 | D75: 17 | E75: 7 | F75: 2014-12-03T12:43:25
B76: рж7.840.366 | G76: 1.080 | H76: 7 | I76: 2014-12-03T12:48:53
B77: яиуш.754321.025лак | G77: 16 | H77: 7 | I77: 2014-12-03T12:51:58
B78: яиуш.301412.025 | G78: 2 | H78: 7 | I78: 2014-12-03T12:53:43
B79: яиуш.741555.015 | G79: 44 | H79: 7 | I79: 2014-12-03T12:54:49
B80: увир.301231.022 | G80: 6 | H80: 5 | I80: 2014-12-03T12:56:02
B81: 986-44612-63 | C81: =D81-G81 -> 1 | D81: 1 | E81: 5 | F81: 2014-12-03T15:40:41
B82: увир.742114.002 | C82: =D82-G82 -> 16 | D82: 16 | E82: 16 | F82: 2014-12-03T15:41:58
B83: увир.742114.002-01 | C83: =D83-G83 -> 15 | D83: 15 | E83: 16 | F83: 2014-12-03T15:43:23
B84: яиуш.731192.010 | C84: =D84-G84 -> 3 | D84: 3 | E84: 5 | F84: 2014-12-04T12:05:56
B85: лдиг.741428.021 | C85: =D85-G85+G144+G156 -> 24 | D85: 12 | E85: 5 | F85: 2014-12-04T12:07:17
B86: рж8.810.261лак2раз | C86: =D86-G86+G115 -> 252 | D86: 126 | E86: 16 | F86: 2014-12-04T12:09:21
B87: увир.301224.051 | C87: =D87-G87 -> 6 | D87: 6 | E87: 5 | F87: 2014-12-04T12:11:47
B88: увир.301224.057 | C88: =D88-G88 -> 6 | D88: 6 | E88: 5 | F88: 2014-12-04T12:12:51
B89: яиуш.746114.006 | C89: =D89-G89 -> 10 | D89: 10 | E89: 16 | F89: 2014-12-04T12:13:59
B90: 11-130-4 | C90: =D90-G90 -> 2 | D90: 2 | E90: 5 | F90: 2014-12-04T12:14:40
B91: яиуш.301172.009 | C91: =D91-G91 -> 2 | D91: 2 | E91: 7 | F91: 2014-12-04T12:18:59
B92: рж8.040.128 | G92: 40 | H92: 7 | I92: 2014-12-04T12:20:26
B93: рж8.810.260лак2раз | G93: 105 | H93: 7 | I93: 2014-12-04T12:22:18
B94: яиуш.741134262лак2раз | G94: 16 | H94: 7 | I94: 2014-12-04T12:26:12
B95: 122.3405010.200-02 | G95: 48 | H95: 12 | I95: 2014-12-04T12:27:19
B96: лдиг.735225.001 | G96: 145 | H96: 7 | I96: 2014-12-04T12:28:29
B97: яиуш.735414.011 | G97: 18 | H97: 7 | I97: 2014-12-04T12:29:26
B98: яиуш.301233.019 | G98: 6 | H98: 5 | I98: 2014-12-04T15:55:06
B99: ря6.174.866 | G99: 20 | H99: 7 | I99: 2014-12-04T15:56:00
B100: ря6.174.865 | G100: 23 | H100: 7 | I100: 2014-12-04T15:56:40
B101: 11-130-1 | C101: =D101-G101 -> 4 | D101: 4 | E101: 5 | F101: 2014-12-04T15:57:57
B102: увир.304121.007 | C102: =D102-G102 -> 6 | D102: 6 | E102: 5 | F102: 2014-12-04T15:58:44
B103: увир.301172.215 | C103: =D103-G103 -> 111 | D103: 111 | E103: 16 | F103: 2014-12-04T16:00:35
B104: рж8.060.223 | C104: =D104-G104 -> 30 | D104: 30 | E104: 16 | F104: 2014-12-04T16:01:35
B105: рж8.060.224 | C105: =D105-G105 -> 30 | D105: 30 | E105: 16 | F105: 2014-12-04T16:02:58
B106: рж6.179.151 | C106: =D106-G106 -> 16 | D106: 16 | E106: 16 | F106: 2014-12-04T16:04:08
B107: риву.671342.041кат | C107: =D107-G107+G163 -> 40 | D107: 20 | E107: 7 | F107: 2014-12-04T16:05:29
B108: риву.671342.154кат | C108: =D108-G108+G189 -> 160 | D108: 80 | E108: 7 | F108: 2014-12-04T16:06:21
B109: шс4.750.425 | C109: =D109-G109 -> 13 | D109: 13 | E109: 7 | F109: 2014-12-04T16:07:23
B110: ря8.075.329 | C110: =D110-G110 -> 53 | D110: 53 | E110: гал | F110: 2014-12-05T12:17:49
B111: рж8.050.858 | C111: =D111-G111 -> 16 | D111: 16 | E111: гал | F111: 2014-12-05T12:21:00
B112: яиуш.301233.027 | G112: 6 | H112: 5 | I112: 2014-12-05T12:22:46
B113: яиуш.741124.002 | G113: 130 | H113: 16 | I113: 2014-12-05T12:23:33
B114: яиуш.301112.002 | G114: 1 | H114: 4 | I114: 2014-12-05T12:24:30
B115: рж8.810.261лак2раз | G115: 126 | H115: 7 | I115: 2014-12-05T12:25:48
B116: ря8.803.297лак | G116: 100 | H116: 7 | I116: 2014-12-05T12:26:57
B117: рж8.810.261лак1раз | G117: 37 | H117: 16 | I117: 2014-12-05T12:28:03
B118: яиуш.301112.015 | G118: 19 | H118: 7 | I118: 2014-12-05T12:29:15
B119: яиуш.741542.035 | G119: 50 | H119: 7 | I119: 2014-12-05T12:30:10
B120: яиуш.745522.032-01 | G120: 18 | H120: 7 | I120: 2014-12-05T12:31:10
B121: яиуш.745522.032 | G121: 18 | H121: 7 | I121: 2014-12-05T12:31:52
B122: яиуш.745312.043 | G122: 5 | H122: 5 | I122: 2014-12-05T12:32:43
B123: яиуш.301713.011 | C123: =D123-G123 -> 12 | D123: 12 | E123: гал | F123: 2014-12-08T12:29:48
B124: яиуш.301713.011-01 | C124: =D124-G124 -> 12 | D124: 12 | E124: гал | F124: 2014-12-08T12:31:03
B125: ря8.024.722 | C125: =D125-G125 -> 60 | D125: 60 | E125: гал | F125: 2014-12-08T12:32:07
B126: яиуш.301233.021 | C126: =D126-G126 -> 6 | D126: 6 | E126: 5 | F126: 2014-12-08T12:33:02
B127: яиуш.741124.171лак2раз | C127: =D127-G127+G193 -> 376 | D127: 188 | E127: 16 | F127: 2014-12-08T12:34:44
B128: рж8.050.848 | G128: 31 | H128: 7 | I128: 2014-12-08T12:36:35
B129: яиуш.301231.029 | G129: 6 | H129: 5 | I129: 2014-12-08T12:37:25
B130: яиуш.301112.015 | G130: 13 | H130: 7 | I130: 2014-12-08T12:38:33
B131: рж8.040.129 | G131: 77 | H131: 7 | I131: 2014-12-08T12:39:50
B132: 122.3405010.200-03 | G132: 121 | H132: 12 | I132: 2014-12-08T12:41:24
B133: яиуш.741134.185 | G133: 34 | H133: 7 | I133: 2014-12-08T12:42:17
B134: рж6.112.175 | G134: 33 | H134: 7 | I134: 2014-12-08T12:44:37
B135: шс4.750.425кат | G135: 7 | H135: 7 | I135: 2014-12-08T12:45:51
B136: яиуш.735535.024 | G136: 1 | H136: 5 | I136: 2014-12-08T12:46:53
B137: 121.3405010.200-03 | C137: =D137-G137+G143+G165+G172 -> 1424 | D137: 774 | E137: гал | F137: 2014-12-08T15:52:25
B138: 122.3405010.200-02 | C138: =D138-G138 -> 36 | D138: 36 | E138: гал | F138: 2014-12-08T15:53:28
B139: лдиг.741428.022 | C139: =D139-G139 -> 9 | D139: 9 | E139: 16 | F139: 2014-12-08T15:54:25
B140: ря6.174.866 | C140: =D140-G140 -> 11 | D140: 11 | E140: 16 | F140: 2014-12-08T15:55:13
B141: риву.301251.172 | C141: =D141-G141 -> 300 | D141: 300 | E141: 16 | F141: 2014-12-08T15:56:16
B142: рж8.050.818 | G142: 176 | H142: 7 | I142: 2014-12-08T15:57:25
B143: 121.3405010.200-03 | G143: 216 | H143: 12 | I143: 2014-12-08T15:58:13
B144: лдиг.741428.021 | G144: 9 | H144: 7 | I144: 2014-12-08T16:00:41
B145: яиуш.301233.023 | C145: =D145-G145 -> 6 | D145: 6 | E145: 5 | F145: 2014-12-09T12:19:22
B146: яиуш.301233.025 | C146: =D146-G146 -> 6 | D146: 6 | E146: 5 | F146: 2014-12-09T12:19:59
B147: яиуш.741515.010 | C147: =D147-G147 -> 150 | D147: 150 | E147: 16 | F147: 2014-12-09T12:20:54
B148: увир.301172.215 | C148: =D148-G148+G187+G194 -> 179 | D148: 34 | E148: 16 | F148: 2014-12-09T12:22:13
B149: рж8.060.223 | C149: =D149-G149 -> 30 | D149: 30 | E149: 16 | F149: 2014-12-09T12:23:07
B150: рж8.060.224 | C150: =D150-G150 -> 30 | D150: 30 | E150: 16 | F150: 2014-12-09T12:23:52
B151: яиуш.301112.016 | C151: =D151-G151 -> 21 | D151: 21 | E151: 16 | F151: 2014-12-09T12:24:41
B152: яиуш.741244.017лак | C152: =D152-G152 -> 100 | D152: 100 | E152: пластм | F152: 2014-12-09T12:25:52
B153: рж8.675.047 | C153: =D153-G153 -> 100 | D153: 100 | E153: 16 | F153: 2014-12-09T12:27:00
B154: яиуш.725325.002 | G154: 5 | H154: 7 | I154: 2014-12-09T12:28:13
B155: виур.735391.001-2 | G155: 800 | H155: 7 | I155: 2014-12-09T12:30:08
B156: лдиг.741428.021 | G156: 3 | H156: 7 | I156: 2014-12-09T12:32:21
B157: 121.3405010.2000-03 | G157: 216 | H157: 12 | I157: 2014-12-09T12:33:41
B158: риву.671121.028кат | G158: 17 | H158: 7 | I158: 2014-12-09T12:35:48
B159: рж6.174.866 | G159: 4 | H159: 7 | I159: 2014-12-09T12:36:33
B160: рж6.174.865 | G160: 3 | H160: 7 | I160: 2014-12-09T12:37:15
B161: рж8.034.119 | G161: 18 | H161: 7 | I161: 2014-12-09T12:38:03
B162: рж8.020.095 | G162: 100 | H162: 7 | I162: 2014-12-09T12:38:51
B163: риву.671342.041кат | G163: 20 | H163: 7 | I163: 2014-12-09T12:39:43
B164: шс4.750.425кат | G164: 13 | H164: 7 | I164: 2014-12-09T12:40:50
B165: 121.3405010.200-03 | G165: 146 | H165: 12 | I165: 2014-12-09T12:41:47
B166: 2а5.752.006кат | G166: 55 | H166: 7 | I166: 2014-12-09T12:43:19
B167: яиуш.741124.390лак | G167: 542 | H167: 7 | I167: 2014-12-09T15:31:57
B168: яиуш.301233.010 | G168: 6 | H168: 5 | I168: 2014-12-09T15:32:38
B169: рж6.112160 | G169: 41 | H169: 16 | I169: 2014-12-09T15:33:22
B170: ря8.044.574 | G170: 41 | H170: 16 | I170: 2014-12-09T15:34:08
B171: рж6.179.151-04 | G171: 16 | H171: 7 | I171: 2014-12-09T15:35:00
B172: 121.3405010.200-03 | G172: 288 | H172: 12 | I172: 2014-12-09T15:35:49
B173: яиуш.303729.002 | C173: =D173-G173 -> 6 | D173: 6 | E173: гал | F173: 2014-12-09T15:37:45
B174: яиуш.725325.002 | C174: =D174-G174 -> 25 | D174: 25 | E174: 16 | F174: 2014-12-09T15:38:47
B175: яиуш.301412.025 | C175: =D175-G175 -> 2 | D175: 2 | E175: 16 | F175: 2014-12-09T15:39:40
B176: яиуш.735221.005 | C176: =D176-G176 -> 48 | D176: 48 | E176: 5 | F176: 2014-12-09T15:40:55
B177: 122.3405010.200-02 | C177: =D177-G177+G191 -> 540 | D177: 435 | E177: гал | F177: 2014-12-09T15:42:22
B178: 121.3405010.200-03 | C178: =D178-G178+G192+G199 -> 411 | D178: 215 | E178: гал | F178: 2014-12-10T14:01:01
B179: рж8.810.261лак | C179: =D179-G179 -> 72 | D179: 72 | E179: 16 | F179: 2014-12-10T14:02:41
B180: яиуш.301231.009 | C180: =D180-G180 -> 20 | D180: 20 | E180: 16 | F180: 2014-12-10T14:06:05
B181: виур.735391.001-2 | C181: =D181-G181+G195 -> 1480 | D181: 480 | E181: гал | F181: 2014-12-10T14:06:53
B182: увир.742214.004-01 | C182: =D182-G182 -> 1 | D182: 1 | E182: сгд7 | F182: 2014-12-10T14:08:24
B183: увир.305424.004 | C183: =D183-G183 -> 2 | D183: 2 | E183: 5 | F183: 2014-12-10T14:11:55
B184: яиуш.735412.072 | G184: 30 | H184: 7 | I184: 2014-12-10T14:13:01
B185: рж6.112.160 | G185: 2 | H185: 16 | I185: 2014-12-10T14:13:46
B186: ря8.044.574 | G186: 2 | H186: 16 | I186: 2014-12-10T14:14:23
B187: увир.301172.215 | G187: 111 | H187: 7 | I187: 2014-12-10T14:15:19
B188: рж8.050.848 | G188: 2 | H188: 7 | I188: 2014-12-10T14:16:35
B189: риву.671342.154кат | G189: 80 | H189: 7 | I189: 2014-12-10T14:17:25
B190: виур.735391.004-02 | G190: 850 | H190: 7 | I190: 2014-12-10T14:18:17
B191: 122.3405010.200-02 | G191: 105 | H191: 12 | I191: 2014-12-10T14:19:01
B192: 121.3405010.200-03 | G192: 124 | H192: 12 | I192: 2014-12-10T14:19:55
B193: яиуш.741124.171лак2раз | G193: 188 | H193: 16 | I193: 2014-12-10T14:20:40
B194: увир.301172.215 | G194: 34 | H194: 7 | I194: 2014-12-10T14:21:42
B195: виур.735391.001-2 | G195: 1000 | H195: 7 | I195: 2014-12-10T14:22:35
B196: ря8.075.273 | G196: 2 | H196: 7 | I196: 2014-12-10T14:23:14
B197: лдиг.741124.335-01 | G197: 29 | H197: 7 | I197: 2014-12-10T14:24:13
B198: рж8.040.129 | G198: 3 | H198: 7 | I198: 2014-12-10T14:25:02
B199: 121.3405010.200-03 | G199: 72 | H199: 12 | I199: 2014-12-10T14:26:18
B200: ря4.137.704-2 | C200: =D200-G200 -> 30 | D200: 30 | E200: 16 | F200: 2014-12-11T11:13:02
... 82 more rows
